bitfinex-derivatives/quotes_SOLF0:USTF0_20240907
["timestamp","ask_amount","ask_price","bid_price","bid_amount"]
[1725737459090,5.16353291,128.27,128.21,126.52228767]
[1725737460179,14.75353291,128.27,128.21,126.52228767]
[1725737460603,3.8989,128.25,128.22,3.8995]
[1725737461089,3.8989,128.25,128.23,3.8993]
[1725737463086,3.8989,128.25,128.22,3.8995]
[1725737463290,3.8986,128.26,128.21,136.11228767]
[1725737463697,5.16353291,128.27,128.21,136.11228767]
[1725737463988,3.8988,128.25,128.21,136.11228767]
[1725737465290,3.8988,128.25,128.23,3.8994]
[1725737465484,5.16353291,128.27,128.21,136.11228767]
[1725737465904,5.16353291,128.27,128.23,3.8992]
[1725737466089,9.59,128.24,128.12,438.80295559]
[1725737466285,9.59,128.24,128.17,10.9165]
[1725737466490,3.8999,128.22,128.19,3.9004]
[1725737466690,9.59,128.24,128.17,14.81305936]
[1725737467095,3.8995,128.23,128.2,3.9003]
[1725737468293,3.8997,128.22,128.2,3.9003]
[1725737468891,9.59,128.25,128.17,14.81305936]
[1725737469093,14.75353291,128.27,128.21,9.59]
[1725737469306,3.8989,128.25,128.21,9.59]
[1725737469606,3.8989,128.25,128.22,3.8995]
[1725737470197,9.59,128.23,128.17,1.3265]
[1725737471117,5.16353291,128.27,128.19,9.59]
[1725737471291,5.16353291,128.27,128.2,9.59]
[1725737471992,3.82293291,128.27,128.21,10.976]
[1725737472199,3.8984,128.27,128.23,3.8994]
[1725737473899,3.8984,128.27,128.24,3.899]
[1725737475992,1.3347,128.3,128.22,1.3559]
[1725737476335,0.28670247,128.29,128.23,9.59]
[1725737476500,4.18440247,128.29,128.25,3.8986]
[1725737476796,3.8977,128.29,128.23,9.59]
[1725737477199,3.8977,128.29,128.25,3.8985]
[1725737478099,9.59,128.27,128.22,1.3559]
[1725737478496,9.59,128.25,128.22,3.8995]
[1725737478799,9.59,128.25,128.2,3.97339886]
[1725737478999,9.59,128.25,128.23,3.8992]
[1725737479189,3.8987,128.26,128.23,3.8992]
[1725737483899,3.8983,128.27,128.24,3.8989]
[1725737484094,9.59,128.27,128.2,13.55607519]
[1725737484697,3.8982,128.27,128.21,9.59]
[1725737485588,3.8982,128.27,128.24,3.8989]
[1725737488704,13.488,128.28,128.25,3.8987]
[1725737489215,13.488,128.28,128.25,3.8985]
[1725737492505,13.4417045,128.3,128.22,9.59]
[1725737492702,13.4417045,128.3,128.24,9.59]
[1725737492898,13.4417045,128.3,128.23,10.9501]
[1725737493100,3.8977,128.29,128.26,3.8984]
[1725737493301,9.59,128.29,128.23,10.9501]
[1725737493505,3.8979,128.28,128.26,3.8985]
[1725737493897,3.8517045,128.3,128.23,14.92007574]
[1725737494093,3.8977,128.29,128.26,3.8983]
[1725737496907,13.4879,128.28,128.25,3.8986]
[1725737497708,13.4879,128.28,128.25,3.8987]
[1725737497905,9.59,128.28,128.24,1.334]
[1725737498108,3.8978,128.29,128.24,1.334]
[1725737498316,3.8978,128.29,128.26,3.8983]
[1725737498604,7.78117367,128.3,128.24,1.334]
[1725737498803,7.78117367,128.3,128.27,3.898]
[1725737499008,17.37117367,128.3,128.27,3.898]
[1725737500308,13.4874,128.3,128.27,3.898]
[1725737500703,17.34473913,128.3,128.27,3.898]
[1725737501211,3.8976,128.29,128.26,3.8983]
[1725737501516,13.4876,128.29,128.26,3.8983]
[1725737503108,3.85733913,128.3,128.24,1.334]
[1725737503109,13.4874,128.3,128.27,3.8981]
[1725737503906,3.8974,128.3,128.27,3.8981]
[1725737512525,13.4876,128.29,128.27,3.8981]
[1725737515232,13.4876,128.29,128.26,3.8984]
[1725737517929,9.59,128.27,128.19,9.66328869]
[1725737518133,9.59,128.26,128.2,15.0640609]
[1725737518329,9.59,128.26,128.19,12.1741]
[1725737518528,9.59,128.25,128.19,12.1741]
[1725737518734,24.7538,128.32,128.19,12.1741]
[1725737518925,3.8986,128.26,128.23,3.8992]
[1725737519168,7.74871307,128.26,128.23,3.8992]
[1725737521135,1.3338,128.32,128.25,3.8987]
[1725737521324,9.59,128.29,128.22,9.59]
[1725737522124,3.898,128.28,128.25,3.8986]
[1725737523027,17.4692979,128.29,128.26,3.8984]
[1725737523227,13.5715979,128.29,128.23,9.59]
[1725737524229,13.5715979,128.29,128.21,9.59]
[1725737524636,3.8983,128.27,128.21,9.59]
[1725737525227,3.8983,128.27,128.24,3.8988]
[1725737525433,3.8983,128.27,128.21,9.59]
[1725737525833,3.8979,128.28,128.25,3.8986]
[1725737527035,3.8979,128.28,128.26,3.8984]
[1725737528934,7.8792979,128.29,128.26,3.8984]
[1725737530232,3.8977,128.29,128.23,9.59]
[1725737530434,3.8977,128.29,128.24,1.3998]
[1725737531537,3.8977,128.29,128.26,3.8983]
[1725737534037,3.8977,128.29,128.24,1.3998]
[1725737535642,3.8977,128.29,128.26,3.8983]
[1725737539732,3.8979,128.28,128.26,3.8983]
[1725737541842,3.8977,128.29,128.24,1.3998]
[1725737542088,2.6707,128.33,128.24,1.3998]
[1725737542089,1.2898,128.36,128.27,9.59]
[1725737542240,9.59,128.34,128.27,13.53353447]
[1725737542640,3.8965,128.33,128.29,3.8975]
[1725737543036,3.8965,128.33,128.27,9.59]
[1725737543233,3.8965,128.33,128.3,3.897]
[1725737543836,3.8965,128.33,128.27,9.59]
[1725737543837,1.3452,128.35,128.27,9.59]
[1725737544041,10.9352,128.35,128.27,9.59]
[1725737544243,10.9352,128.35,128.28,1.4019]
[1725737544448,14.8311,128.35,128.32,3.8966]
[1725737545245,3.8961,128.34,128.31,3.8967]
[1725737547447,3.8962,128.34,128.31,3.8967]
[1725737548849,5.2411,128.35,128.32,3.8966]
[1725737549068,0.28658078,128.34,128.32,3.8966]
[1725737550151,0.28658078,128.34,128.29,9.59]
[1725737550352,13.4857,128.36,128.29,10.927]
[1725737550543,0.28658047,128.35,128.29,10.927]
[1725737550742,0.28658047,128.35,128.33,3.8962]
[1725737551481,0.28658047,128.35,128.34,3.896]
[1725737551842,0.28657321,128.35,128.34,3.896]
[1725737552247,0.28657295,128.35,128.34,3.896]
[1725737553447,13.4857,128.36,128.34,3.896]
[1725737554647,3.8957,128.36,128.34,3.896]
[1725737556549,13.4853,128.37,128.34,3.896]
[1725737558650,3.93846416,128.43,128.32,9.59]
[1725737558853,9.59,128.4,128.33,10.9719]
[1725737559054,0.28651287,128.39,128.33,10.9719]
[1725737559248,4.18121287,128.39,128.36,3.8953]
[1725737559455,0.28651287,128.38,128.36,3.8953]
[1725737560456,3.8943,128.4,128.37,3.8951]
[1725737560660,0.28650935,128.39,128.37,3.8951]
[1725737561879,4.18110935,128.39,128.37,3.8951]
[1725737562058,0.28650935,128.38,128.37,3.8951]
[1725737562545,0.28650935,128.38,128.36,3.8953]
[1725737562751,4.18140935,128.38,128.33,10.9719]
[1725737562954,3.8949,128.38,128.33,10.9719]
[1725737563458,3.8949,128.38,128.35,3.8956]
[1725737564360,3.8949,128.38,128.36,3.8954]
[1725737564659,13.4847,128.39,128.36,3.8954]
[1725737564858,0.28651095,128.38,128.36,3.8954]
[1725737567560,3.8951,128.37,128.34,3.8958]
[1725737567865,9.59,128.37,128.3,158.22761319]
[1725737568264,3.8956,128.36,128.33,3.8962]
[1725737571263,7.87494528,128.36,128.33,3.8962]
[1725737571664,9.59,128.34,128.29,1.3614]
[1725737572163,13.4862,128.34,128.3,3.8971]
[1725737572367,9.59,128.34,128.3,3.8971]
[1725737572564,9.59,128.34,128.29,1.3614]
[1725737572565,9.59,128.33,128.2,9.69257297]
[1725737572761,9.59,128.33,128.25,10.9031]
[1725737573063,2.6193,128.35,128.27,3.898]
[1725737573064,9.59,128.32,128.27,3.898]
[1725737573268,9.59,128.3,128.25,1.3131]
[1725737573571,9.59,128.29,128.25,3.8986]
[1725737573867,3.88252104,128.28,128.25,3.8986]
[1725737574079,9.59,128.29,128.25,3.8986]
[1725737574570,9.59,128.28,128.21,2.6841]
[1725737575067,3.8088467,128.29,128.21,1.3624]
[1725737575068,3.8993,128.24,128.21,1.3624]
[1725737575366,3.8993,128.24,128.19,9.59]
[1725737575865,3.8993,128.24,128.2,3.9]
[1725737576478,9.59,128.24,128.17,153.14046446]
[1725737576687,9.59,128.21,128.17,153.14046446]
[1725737578164,9.59,128.2,128.08,9.7207377]
[1725737578379,9.59,128.2,127.89,19.5475]
[1725737578380,9.59,128.2,128.13,9.59]
[1725737578768,3.9007,128.19,128.15,3.9016]
[1725737579273,17.4071266,128.2,128.16,3.9015]
[1725737580269,13.5067266,128.2,128.17,3.901]
[1725737580775,3.9167266,128.2,128.17,3.901]
[1725737581972,17.4070266,128.2,128.16,3.9013]
[1725737582171,13.4903,128.2,128.13,9.59]
[1725737582576,13.4903,128.2,128.17,3.9012]
[1725737582776,17.39336719,128.2,128.17,3.9012]
[1725737582970,17.39336719,128.2,128.13,9.59]
[1725737583372,3.9007,128.19,128.15,3.9016]
[1725737583772,9.59,128.19,128.12,2.628]
[1725737584077,13.4914,128.17,128.13,3.9023]
[1725737584676,3.9016,128.16,128.13,3.9023]
[1725737584877,9.59,128.17,128.13,3.9023]
[1725737585581,13.4914,128.17,128.13,3.9023]
[1725737586181,3.9017,128.16,128.13,3.9023]
[1725737589295,3.9019,128.15,128.12,3.9026]
[1725737589883,3.9019,128.15,128.11,3.9029]
[1725737590481,3.9019,128.15,128.12,3.9027]
[1725737593989,9.59,128.14,128.11,3.9029]
[1725737594376,13.4923,128.14,128.08,1.3863]
[1725737594583,9.59,128.13,128.1,3.9031]
[1725737594889,9.59,128.11,128.05,9.59]
[1725737595096,3.86321049,128.1,128.05,9.59]
[1725737595288,13.45321049,128.1,128.05,9.59]
[1725737595488,17.35661049,128.1,128.07,3.9041]
[1725737595995,3.9041,128.08,128.03,9.59]
[1725737596190,3.86321049,128.1,128.0,1.3162]
[1725737596400,9.59,128.08,128.01,9.59]
[1725737596583,3.9044,128.07,128.03,3.9054]
[1725737596891,3.9044,128.07,128.02,9.59]
[1725737597093,7.77541811,128.07,128.02,9.59]
[1725737597310,3.87101811,128.07,128.04,3.905]
[1725737597495,3.87101811,128.07,128.02,9.59]
[1725737597793,3.87101811,128.07,128.05,3.9046]
[1725737600604,3.93984374,128.1,128.02,27.81601562]
[1725737600917,24.0,128.11,128.02,24.0]
[1725737601297,3.8717488,128.1,128.07,3.904]
[1725737601498,3.8717488,128.1,128.02,27.94477856]
[1725737602810,3.8717488,128.1,128.08,3.9038]
[1725737605306,7.7751488,128.1,128.07,3.9041]
[1725737605704,7.7751488,128.1,128.02,27.94477856]
[1725737605904,3.8717488,128.1,128.08,3.904]
[1725737609409,3.8717488,128.1,128.02,27.94477856]
[1725737609410,7.7751488,128.1,128.07,3.9041]
[1725737610013,3.8717488,128.1,128.08,3.9039]
[1725737614112,24.0,128.11,128.09,3.9037]
[1725737614510,27.91080266,128.11,128.09,3.9037]
[1725737615111,24.0,128.11,128.1,3.9033]
[1725737615310,24.0,128.11,128.02,27.94477856]
[1725737615809,24.0,128.11,128.09,3.9035]
[1725737617511,3.92408212,128.12,128.1,3.9033]
[1725737617814,27.9026,128.13,128.1,3.9033]
[1725737618026,9.59,128.12,128.1,3.9033]
[1725737618210,13.54783424,128.12,128.1,3.9033]
[1725737620916,9.59,128.11,128.1,3.9033]
[1725737621715,13.46964698,128.11,128.1,3.9033]
[1725737628920,3.87964698,128.11,128.1,3.9033]
[1725737629112,9.59,128.12,128.11,3.903]
[1725737636727,3.85972676,128.13,128.12,3.9027]
[1725737636924,9.59,128.14,128.06,164.88231352]
[1725737637128,3.91699851,128.13,128.06,168.84147647]
[1725737638029,3.91699851,128.13,128.12,3.9027]
[1725737639126,9.59,128.14,128.13,3.9024]
[1725737639329,13.42579292,128.14,128.13,3.9024]
[1725737641027,13.42579292,128.14,128.12,3.9026]
[1725737644534,3.83579292,128.14,128.06,168.84147647]
[1725737644723,3.83579292,128.14,128.13,3.9024]
[1725737645240,3.83579292,128.14,128.12,3.9026]
[1725737645435,9.59,128.13,128.12,3.9026]
[1725737647639,9.59,128.13,128.11,3.9029]
[1725737648441,9.59,128.12,128.11,3.9029]
[1725737648937,9.59,128.13,128.12,3.9026]
[1725737655234,9.59,128.13,128.11,3.9029]
[1725737656846,13.4925,128.13,128.11,3.9029]
[1725737658647,9.59,128.13,128.11,3.9029]
[1725737659149,9.59,128.13,128.12,3.9027]
[1725737659945,3.83579292,128.14,128.12,3.9027]
[1725737660133,5.2492,128.15,128.12,3.9027]
[1725737660441,9.59,128.14,128.12,3.9027]
[1725737660645,3.99781369,128.13,128.12,3.9027]
[1725737665455,13.58781369,128.13,128.12,3.9027]
[1725737666553,13.58781369,128.13,128.11,3.9028]
[1725737667959,17.49031369,128.13,128.1,3.9032]
[1725737668160,9.59,128.11,128.1,3.9032]
[1725737670257,9.59,128.11,128.08,3.9037]
[1725737670461,9.59,128.09,128.06,153.91181352]
[1725737670762,13.45351214,128.09,128.06,153.91181352]
[1725737671866,9.59,128.07,128.06,153.91181352]
[1725737672364,9.59,128.07,128.06,157.81611352]
[1725737673867,7.76731214,128.09,128.07,3.9042]
[1725737674067,9.59,128.08,128.07,3.9042]
[1725737695174,3.9035,128.1,128.08,3.904]
[1725737695375,13.4935,128.1,128.08,3.904]
[1725737695784,17.41133296,128.1,128.08,3.904]
[1725737698979,9.59,128.09,128.08,3.904]
[1725737699883,13.50783296,128.1,128.09,3.9037]
[1725737700187,9.59,128.11,128.06,1.3789]
[1725737700573,13.47932117,128.11,128.06,1.3789]
[1725737700977,13.47932117,128.11,128.09,3.9034]
[1725737701681,4.0496,128.17,128.06,10.9689]
[1725737701985,9.59,128.13,128.07,9.59]
[1725737702182,13.46486999,128.13,128.11,3.9029]
[1725737702781,9.59,128.13,128.11,3.9029]
[1725737703285,9.59,128.12,128.1,3.9032]
[1725737703485,9.59,128.1,128.06,1.3789]
[1725737703788,9.59,128.08,128.06,1.3789]
[1725737704891,3.9031,128.11,128.06,1.3789]
[1725737705089,9.59,128.1,128.06,1.3789]
[1725737705787,9.59,128.1,128.09,3.9035]
[1725737713197,1.3318,128.13,128.06,1.3789]
[1725737713498,9.59,128.11,128.06,1.3789]
[1725737713795,9.59,128.11,128.09,3.9035]
[1725737716591,9.59,128.11,128.1,3.9033]
[1725737723307,1.3318,128.13,128.06,10.9689]
[1725737723497,13.50002151,128.14,128.07,9.59]
[1725737723897,7.81222151,128.14,128.12,3.9027]
[1725737724098,17.40222151,128.14,128.12,3.9027]
[1725737727807,13.4924,128.13,128.11,3.9029]
[1725737728009,9.59,128.12,128.11,3.9029]
[1725737728903,7.81232151,128.14,128.06,1.3789]
[1725737729109,9.59,128.13,128.06,1.3789]
[1725737730002,9.59,128.13,128.11,3.9028]
[1725737733106,13.50002151,128.14,128.12,3.9027]
[1725737733402,9.59,128.14,128.12,3.9027]
[1725737738008,9.59,128.13,128.12,3.9027]
[1725737743910,3.95057851,128.15,128.08,13.53276567]
[1725737744114,3.95057851,128.15,128.09,1.2757]
[1725737744302,13.54057851,128.15,128.09,1.2757]
[1725737744507,13.54057851,128.15,128.09,10.8657]
[1725737745313,13.54057851,128.15,128.14,3.9021]
[1725737746112,9.59,128.16,128.15,3.9017]
[1725737746312,9.59,128.16,128.1,1.3811]
[1725737747315,9.59,128.16,128.14,3.902]
[1725737748515,9.59,128.16,128.15,3.9018]
[1725737748810,9.59,128.17,128.15,3.9018]
[1725737749011,9.59,128.18,128.17,3.9011]
[1725737750307,31.236,128.28,128.1,9.1876]
[1725737750308,264.9733171,128.3,128.14,9.59]
[1725737750612,264.9733171,128.3,128.17,9.59]
[1725737750613,9.59,128.23,128.17,9.59]
[1725737750810,9.59,128.23,128.18,3.82375105]
[1725737751013,10.9536,128.25,128.18,13.41375105]
[1725737751215,10.9536,128.25,128.18,9.59]
[1725737751413,1.3636,128.25,128.18,9.59]
[1725737751616,9.59,128.27,128.2,9.59]
[1725737751818,9.59,128.27,128.21,10.974]
[1725737752014,228.0,128.34,128.21,1.384]
[1725737752219,1.65028905,128.33,128.26,9.59]
[1725737752415,9.87668905,128.32,128.26,9.59]
[1725737752613,9.59,128.32,128.26,9.59]
[1725737753814,9.59,128.32,128.28,3.8976]
[1725737754616,1.3636,128.33,128.3,3.8971]
[1725737754922,10.9536,128.33,128.3,3.8971]
[1725737757123,14.85,128.33,128.3,3.8971]
[1725737757920,0.28662971,128.32,128.3,3.8971]
[1725737759343,14.85,128.33,128.3,3.8971]
[1725737761539,14.85,128.33,128.27,1.2971]
[1725737761540,14.85,128.33,128.29,3.8974]
[1725737761926,9.59,128.31,128.22,2.7585]
[1725737762138,9.59,128.31,128.24,9.59]
[1725737762529,13.487,128.31,128.24,9.59]
[1725737762733,9.59,128.31,128.24,9.59]
[1725737763329,3.8973,128.3,128.27,3.898]
[1725737763735,13.4873,128.3,128.27,3.898]
[1725737766332,13.4873,128.3,128.23,10.909]
[1725737766333,13.56138672,128.29,128.23,1.319]
[1725737766738,3.8985,128.26,128.23,3.8992]
[1725737766948,9.59,128.27,128.2,10.9703]
[1725737767140,3.97138672,128.29,128.2,10.9703]
[1725737767141,9.59,128.26,128.2,10.9703]
[1725737767343,13.4887,128.26,128.22,3.8995]
[1725737767743,13.4887,128.26,128.2,10.9703]
[1725737767940,13.4887,128.26,128.23,3.8993]
[1725737768136,3.8988,128.25,128.2,10.9703]
[1725737768551,3.8988,128.25,128.22,3.8994]
[1725737768851,13.4886,128.26,128.2,10.9703]
[1725737769048,13.4886,128.26,128.23,3.8992]
[1725737770248,13.4886,128.26,128.24,3.8991]
[1725737770249,9.59,128.26,128.24,3.8991]
[1725737770447,14.7845,128.27,128.24,3.8991]
[1725737771650,14.7845,128.27,128.2,10.9703]
[1725737771651,3.8985,128.26,128.23,3.8993]
[1725737772351,13.4885,128.26,128.23,3.8993]
[1725737773344,13.4885,128.26,128.24,3.8991]
[1725737773959,1.2962,128.27,128.25,3.8988]
[1725737775844,1.2962,128.27,128.26,3.8985]
[1725737776048,9.59,128.28,128.26,3.8985]
[1725737776854,13.56138672,128.29,128.26,3.8985]
[1725737777152,9.59,128.29,128.26,3.8985]
[1725737777349,13.4876,128.29,128.26,3.8985]
[1725737777551,3.95358814,128.28,128.26,3.8985]
[1725737778958,9.59,128.29,128.27,3.8982]
[1725737779560,3.88464238,128.28,128.27,3.8982]
[1725737780659,3.8976,128.29,128.27,3.8982]
[1725737780856,13.4876,128.29,128.27,3.8982]
[1725737781354,13.4765923,128.28,128.2,1.3803]
[1725737781560,14.7761923,128.28,128.2,10.9703]
[1725737782249,3.8983,128.27,128.24,3.8988]
[1725737782660,3.8983,128.27,128.2,10.9703]
[1725737782962,3.8983,128.27,128.24,3.8989]
[1725737784053,18.6741923,128.28,128.25,3.8987]
[1725737786754,3.8982,128.27,128.25,3.8987]
[1725737795165,3.8985,128.26,128.24,3.8989]
[1725737795365,13.4885,128.26,128.24,3.8989]
[1725737796262,9.59,128.26,128.24,3.8989]
[1725737804270,3.8983,128.27,128.2,1.3803]
[1725737804468,3.8983,128.27,128.21,9.59]
[1725737804874,3.8983,128.27,128.25,3.8986]
[1725737807473,18.6741923,128.28,128.25,3.8986]
[1725737808267,3.8983,128.27,128.25,3.8986]
[1725737808568,14.7761923,128.28,128.25,3.8986]
[1725737808968,18.6742923,128.28,128.25,3.8986]
[1725737812174,14.7761923,128.28,128.25,3.8986]
[1725737812875,18.6742923,128.28,128.25,3.8986]
[1725737819281,3.8865923,128.28,128.21,13.64126493]
[1725737819586,9.59,128.31,128.23,9.59]
[1725737819887,3.8973,128.3,128.27,3.8979]
[1725737820075,9.59,128.31,128.23,10.8747]
[1725737820276,13.4872,128.31,128.28,3.8979]
[1725737820687,9.59,128.32,128.25,13.50523044]
[1725737820890,9.59,128.32,128.3,3.8971]
[1725737821690,13.4867,128.32,128.3,3.8971]
[1725737822085,13.4867,128.32,128.29,3.8974]
[1725737834109,5.2926,128.33,128.3,3.8971]
[1725737834318,9.59,128.35,128.27,9.59]
[1725737834595,9.59,128.35,128.28,1.4093]
[1725737835000,3.95001559,128.34,128.32,3.8965]
[1725737836399,9.59,128.33,128.31,3.8969]
[1725737836602,3.87125701,128.32,128.31,3.8969]
[1725737837304,9.59,128.33,128.31,3.8969]
[1725737838706,3.8956,128.36,128.33,3.8962]
[1725737838916,17.3344227,128.36,128.33,3.8962]
[1725737839209,13.4388227,128.36,128.34,3.8958]
[1725737844307,17.3343227,128.36,128.34,3.8958]
[1725737844503,17.3343227,128.36,128.33,3.8962]
[1725737847411,3.8957,128.35,128.33,3.8962]
[1725737849115,9.59,128.34,128.28,1.4093]
[1725737849502,13.4863,128.34,128.31,3.8969]
[1725737850113,3.8964,128.33,128.31,3.8969]
[1725737853915,3.8964,128.33,128.28,1.4093]
[1725737854222,3.8964,128.33,128.3,3.8971]
[1725737854818,3.8967,128.32,128.29,3.8975]
[1725737855324,3.8967,128.32,128.27,9.59]
[1725737855919,3.8967,128.32,128.27,9.54608485]
[1725737856114,13.4865,128.33,128.3,3.8971]
[1725737857916,3.8967,128.32,128.3,3.8971]
[1725737879531,3.8967,128.32,128.29,3.8975]
[1725737881438,9.59,128.3,128.26,1.315]
[1725737881639,3.90214424,128.29,128.26,1.315]
[1725737881942,7.79984424,128.29,128.26,5.2133]
[1725737882334,3.8982,128.27,128.25,3.8987]
[1725737883638,3.8982,128.27,128.24,5.2406]
[1725737884138,3.8982,128.27,128.24,3.899]
[1725737884938,17.44425959,128.28,128.25,3.8986]
[1725737885339,17.44425959,128.28,128.23,9.59]
[1725737885944,17.44425959,128.28,128.25,3.8986]
[1725737890948,3.8984,128.27,128.24,3.8988]
[1725737891847,9.59,128.27,128.24,3.8988]
[1725737893148,3.8985,128.26,128.24,3.8988]
[1725737893355,9.59,128.25,128.21,150.11718423]
[1725737893648,9.59,128.23,128.21,150.11718423]
[1725737893956,9.59,128.23,128.13,2.6354]
[1725737894138,1.3901,128.29,128.13,12.2254]
[1725737894139,9.59,128.2,128.13,12.2254]
[1725737894340,9.59,128.2,128.13,16.10098502]
[1725737894949,17.29978237,128.2,128.16,3.9012]
[1725737895147,9.59,128.18,128.13,2.6354]
[1725737895350,9.59,128.17,128.13,2.6354]
[1725737895647,13.4913,128.17,128.14,3.9021]
[1725737895843,17.32958923,128.17,128.14,3.9021]
[1725737897746,13.42828923,128.17,128.14,3.9021]
[1725737897950,13.39179629,128.17,128.14,3.9021]
[1725737898150,13.39179629,128.17,128.15,3.9018]
[1725737901448,3.83828923,128.17,128.13,2.6354]
[1725737901843,3.83828923,128.17,128.15,3.9016]
[1725737902851,3.83828923,128.17,128.16,3.9015]
[1725737903549,3.9008,128.19,128.16,3.9015]
[1725737903747,13.4908,128.19,128.16,3.9015]
[1725737904151,17.41048004,128.19,128.16,3.9015]
[1725737906142,3.91968004,128.19,128.17,3.9012]
[1725737906349,13.4904,128.2,128.17,3.9012]
[1725737906857,17.41437365,128.2,128.17,3.9012]
[1725737908353,17.41437365,128.2,128.13,2.6354]
[1725737908553,13.4904,128.2,128.13,2.6354]
[1725737909054,17.42031215,128.2,128.17,3.901]
[1725737911051,17.42031215,128.2,128.13,2.6354]
[1725737912259,17.42031215,128.2,128.17,3.901]
[1725737913464,17.42031215,128.2,128.18,3.9009]
[1725737914261,13.51991215,128.2,128.18,3.9009]
[1725737916258,17.42021215,128.2,128.17,3.901]
[1725737917261,17.42021215,128.2,128.18,3.9009]
[1725737917464,13.51991215,128.2,128.18,3.9009]
[1725737918353,9.59,128.2,128.18,3.9009]
[1725737919358,13.4903,128.2,128.17,3.9011]
[1725737919555,9.59,128.18,128.17,3.9011]
[1725737920968,9.59,128.18,128.16,3.9014]
[1725737925656,5.29786991,128.21,128.13,2.6354]
[1725737925862,9.59,128.19,128.13,2.6354]
[1725737926061,9.59,128.18,128.13,2.6354]
[1725737926364,9.59,128.18,128.16,3.9013]
[1725737931261,9.59,128.18,128.17,3.9012]
[1725737935975,9.59,128.18,128.16,3.9014]
[1725737937277,3.90696991,128.21,128.14,9.59]
[1725737937477,13.49696991,128.21,128.14,9.59]
[1725737937770,17.39706991,128.21,128.14,9.59]
[1725737939478,17.39706991,128.21,128.19,3.9005]
[1725737940579,3.90696991,128.21,128.14,9.59]
[1725737940776,13.49696991,128.21,128.14,9.59]
[1725737940976,9.59,128.2,128.14,9.59]
[1725737941174,9.59,128.2,128.19,3.9003]
[1725737942875,9.59,128.2,128.14,9.59]
[1725737944089,9.59,128.2,128.19,3.9006]
[1725737948289,9.59,128.2,128.18,3.9007]
[1725737948491,9.59,128.19,128.18,3.9007]
[1725737949388,9.59,128.19,128.17,3.9011]
[1725737950992,13.4908,128.19,128.16,3.9014]
[1725737952781,3.9009,128.18,128.16,3.9014]
[1725737954193,13.4908,128.19,128.16,3.9014]
[1725737954886,13.4908,128.19,128.17,3.9011]
[1725737955895,13.4908,128.19,128.16,3.9014]
[1725737960496,9.59,128.19,128.13,1.3122]
[1725737961184,9.59,128.19,128.17,3.9011]
[1725737966594,13.4906,128.19,128.17,3.9011]
[1725737971229,3.9011,128.18,128.16,3.9014]
[1725737971408,9.59,128.17,128.16,3.9014]
[1725737972300,9.59,128.17,128.15,3.9017]
[1725737973007,9.59,128.17,128.16,3.9015]
[1725737985620,9.59,128.18,128.12,144.76740144]
[1725737985823,9.59,128.18,128.13,11.24407161]
[1725737986121,9.59,128.18,128.16,3.9013]
[1725737987921,9.59,128.18,128.17,3.9012]
[1725737988130,9.59,128.19,128.12,154.35740144]
[1725737988318,9.59,128.2,128.18,3.9007]
[1725737988620,9.59,128.2,128.14,9.59]
[1725737988825,3.90696991,128.21,128.2,3.9003]
[1725737989020,9.59,128.24,128.17,13.54488604]
[1725737989219,9.59,128.24,128.17,9.59]
[1725737989421,9.59,128.24,128.18,4.05199141]